[Event "Polugaevsky Memorial 2018"]
[Site "Samara"]
[Date "2018.07.16"]
[Round "7"]
[White "Karpeshov, Oleg"]
[Black "Fedorov, Alexey A"]
[Result "0-1"]
[ECO "B30"]
[WhiteElo "2333"]
[BlackElo "1399"]
[Annotator "NA"]
[PlyCount "84"]
[EventDate "2018.07.10"]
[EventType "swiss"]
[EventCountry "RUS"]
[SourceTitle "playchess.com"]
[Source "ChessBase"]
[SourceQuality "1"]
[TimeControl "40/5400+30:1800+30"]

1. e4 {[%emt 0:00:00]} c5 {[%emt 0:00:00]} 2. Nf3 {[%emt 0:00:00]} Nc6 {[%emt 0:00:00]} 3. Bb5 {[%emt 0:00:00]} e6 {[%emt 0:00:06]} 4. O-O {[%emt 0:00:09]} Nge7 {[%emt 0:00:10]} 5. d4 {[%emt 0:00:14]} cxd4 {[%emt 0:00:26]} 6. Nxd4 {[%emt 0:00:09]} Ng6 {[%emt 0:01:41] B30: Sicilian: 2...Nc6 3 Bb5, lines without ...g6} (6... Qb6 7. Nxc6 bxc6 8. Bd3 Ng6 9. c4 Be7 10. Nc3 O-O 11. Na4 Qc7 12. c5 d5 13. cxd6 Bxd6 14. g3 c5 {1-0 (27) Caruana,F (2811)-Lenic,L (2662) chess.com INT 2018}) 7. Be3 {[%emt 0:00:43]} Be7 {[%emt 0:05:17]} 8. Be2 {[%emt 0:01:59]} O-O {[%emt 0:02:20] LiveBook: 20 Games} 9. c4 {[%emt 0:00:44]} d6 {[%emt 0:00:34]} 10. Nc3 {[%emt 0:01:08]} Bd7 {[%emt 0:00:59]} 11. Qd2 {[%emt 0:01:59]} Nxd4 $146 {[%emt 0:10:40]} ({Predecessor:} 11... a6 12. Rfd1 Rc8 13. Nb3 Nb8 14. f4 {1-0 (42) Lenic,L (2662)-Alekseenko,K (2594) chess.com INT 2018}) 12. Qxd4 {[%emt 0:02:32]} Qb8 {[%emt 0:03:04]} 13. Qd2 {[%emt 0:01:23]} Rd8 {[%emt 0:01:51]} 14. f4 {[%emt 0:02:31]} Bc6 {[%emt 0:01:58]} 15. Rac1 {[%emt 0:09:51]} b6 {[%emt 0:05:34]} 16. f5 {[%emt 0:14:42]} Ne5 {[%emt 0:06:51]} 17. Bg5 {[%emt 0:01:25]} Qb7 {[%emt 0:09:17]} 18. f6 {[%emt 0:06:04]} gxf6 {[%emt 0:01:25]} 19. Bxf6 {[%emt 0:00:08]} Bxf6 {[%emt 0:08:21]} 20. Rxf6 {[%emt 0:00:10]} Kh8 {[%emt 0:07:36]} 21. Rcf1 {[%emt 0:05:25]} Rd7 {[%emt 0:01:04]} 22. Qd4 {[%emt 0:11:17]} Rg8 {[%emt 0:01:32]} 23. h4 {[%emt 0:01:17]} Qc7 {[%emt 0:06:52]} 24. b4 {[%emt 0:00:40]} Rg6 {[%emt 0:02:42]} 25. R6f4 {[%emt 0:06:41]} Kg8 {[%emt 0:03:28]} 26. Qe3 {[%emt 0:05:19]} Qd8 {[%emt 0:04:47]} 27. h5 {[%emt 0:00:55]} Rg7 $11 {[%emt 0:02:04]} 28. Rf6 {[%emt 0:03:27]} Qe7 29. Qh3 {[%emt 0:06:46]} Rd8 {[%emt 0:07:24]} 30. Qh4 {[%emt 0:17:29]} Kh8 {[%emt 0:00:56]} 31. h6 Rg6 {[%emt 0:00:49]} 32. g3 {[%emt 0:04:00]} Rxf6 {[%emt 0:02:50]} 33. Rxf6 {[%emt 0:01:22]} Rg8 {[%emt 0:00:25]} 34. Kf2 {[%emt 0:00:30]} Rg6 {[%emt 0:03:14]} 35. Rf4 {[%emt 0:00:30]} Qxh4 {[%emt 0:01:41]} 36. Rxh4 {[%emt 0:00:07]} Kg8 {[%emt 0:00:23]} 37. c5 {[%emt 0:01:14]} dxc5 {[%emt 0:00:33]} 38. bxc5 {[%emt 0:00:07]} bxc5 {[%emt 0:00:28]} 39. Rh5 {[%emt 0:00:21]} f6 {[%emt 0:00:33]} 40. Rh1 {[%emt 0:00:00]} Kf8 {[%emt 0:00:00]} 41. Rh4 {[%emt 0:01:30]} Ke7 {[%emt 0:03:24]} 42. Bh5 {[%emt 0:00:15]} Rxh6 {[%emt 0:01:00]} 0-1

[Event "Polugaevsky Memorial 2018"]
[Site "Samara"]
[Date "2018.07.16"]
[Round "7"]
[White "Dubinin, Alexander"]
[Black "Remizov, Yaroslav"]
[Result "1/2-1/2"]
[ECO "B33"]
[WhiteElo "2060"]
[BlackElo "2308"]
[Annotator "NA"]
[PlyCount "87"]
[EventDate "2018.07.10"]
[EventType "swiss"]
[EventCountry "RUS"]
[SourceTitle "playchess.com"]
[Source "ChessBase"]
[SourceQuality "1"]
[TimeControl "40/5400+30:1800+30"]

1. e4 {[%emt 0:02:56]} c5 {[%emt 0:00:00]} 2. Nf3 {[%emt 0:00:10]} Nc6 {[%emt 0:00:00]} 3. d4 {[%emt 0:00:09]} cxd4 {[%emt 0:00:00]} 4. Nxd4 {[%emt 0:00:12]} Nf6 {[%emt 0:00:00]} 5. Nc3 {[%emt 0:00:16]} e5 {[%emt 0:00:00]} 6. Ndb5 {[%emt 0:00:18]} d6 {[%emt 0:00:00]} 7. Bg5 {[%emt 0:01:18]} a6 {[%emt 0:00:11]} 8. Na3 {[%emt 0:00:42]} b5 {[%emt 0:00:08]} 9. Nd5 {[%emt 0:00:16]} Be7 {[%emt 0:00:04]} 10. Bxf6 {[%emt 0:00:08]} Bxf6 {[%emt 0:00:04]} 11. c4 {[%emt 0:00:23]} O-O {[%emt 0:06:50] B33: Sicilian: Pelikan and Sveshnikov Variations} (11... b4 12. Nc2 O-O 13. g3 Rb8 14. b3 Be6 15. h4 Rb7 16. Rc1 a5 17. Bh3 Bxd5 18. cxd5 Na7 19. Bf1 {1-0 (78) Morozevich,A (2665)-Dubov,D (2701) Moscow 2018}) 12. cxb5 {[%emt 0:15:34]} Nd4 {[%emt 0:00:04]} 13. b6 {[%emt 0:08:49] LiveBook: 12 Games} Bb7 {[%emt 0:00:46]} 14. Bc4 {[%emt 0:05:02]} Bg5 {[%emt 0:12:17]} 15. O-O {[%emt 0:02:06]} Kh8 {[%emt 0:03:32]} 16. Nc2 $146 {[%emt 0:09:18]} ({Predecessor:} 16. Qd3 Ne6 17. Rad1 g6 18. Nc7 Nxc7 19. bxc7 Qxc7 20. Qxd6 Qxd6 21. Rxd6 Bxe4 {½-½ (28) Pena Gomez,M (2467)-Bobras,P (2565) Bad Wiessee 2008}) 16... Rc8 {[%emt 0:17:41]} 17. Nc7 {[%emt 0:04:15]} Rxc7 {[%emt 0:07:59]} (17... Nxc2 {might work better.} 18. Qxc2 Qd7) 18. bxc7 {[%emt 0:02:00]} Qxc7 {[%emt 0:00:05]} 19. Nxd4 {[%emt 0:09:29]} Qxc4 {[%emt 0:08:36]} 20. Nf3 {[%emt 0:00:24]} Be7 {[%emt 0:00:57]} 21. Rc1 {[%emt 0:00:33]} Qe6 {[%emt 0:03:51]} 22. Nd2 {[%emt 0:10:08]} f5 {[%emt 0:14:35]} 23. Rc7 {[%emt 0:09:10]} Bxe4 {[%emt 0:03:17]} 24. Nxe4 {[%emt 0:00:09]} fxe4 {[%emt 0:00:01]} 25. Qa4 {[%emt 0:02:02]} d5 {[%emt 0:11:15]} 26. Qd7 {[%emt 0:00:25]} Qxd7 {[%emt 0:00:03]} 27. Rxd7 {[%emt 0:00:07]} Bc5 {[%emt 0:00:02]} 28. Rxd5 {[%emt 0:01:28]} Bd4 {[%emt 0:00:01]} 29. b3 $18 {[%emt 0:07:34]} h5 {[%emt 0:07:33]} 30. g3 {[%emt 0:00:17]} h4 {[%emt 0:00:42]} 31. Kg2 {[%emt 0:01:16]} Rf6 {[%emt 0:00:20]} 32. f4 {[%emt 0:05:33]} exf3+ {[%emt 0:00:09]} 33. Kh3 {[%emt 0:00:29]} hxg3 {[%emt 0:01:47]} 34. Kxg3 {[%emt 0:00:32]} f2 {[%emt 0:00:22]} 35. Rxd4 {[%emt 0:00:35]} exd4 {[%emt 0:00:22]} 36. Rxf2 {[%emt 0:00:02]} Rc6 {[%emt 0:00:43]} 37. Rd2 {[%emt 0:01:08]} Rc3+ {[%emt 0:00:02]} 38. Kf4 {[%emt 0:00:24]} Rh3 {[%emt 0:00:48]} 39. Kg4 {[%emt 0:01:15]} Rh6 {[%emt 0:00:03]} 40. h3 {[%emt 0:00:00]} Rg6+ {[%emt 0:00:00]} 41. Kf5 {[%emt 0:10:03]} Rh6 {[%emt 0:03:49]} 42. Rxd4 {[%emt 0:01:21]} Rxh3 {[%emt 0:00:07]} 43. Rd6 {[%emt 0:00:56]} a5 {[%emt 0:01:48]} 44. Ke4 1/2-1/2

[Event "Polugaevsky Memorial 2018"]
[Site "Samara"]
[Date "2018.07.17"]
[Round "8"]
[White "Gaifullin, Artur"]
[Black "Postnikov, Daniil"]
[Result "1-0"]
[ECO "D90"]
[WhiteElo "2448"]
[BlackElo "2370"]
[Annotator "RC"]
[PlyCount "95"]
[EventDate "2018.07.10"]
[EventType "swiss"]
[EventCountry "RUS"]
[SourceTitle "playchess.com"]
[Source "ChessBase"]
[SourceQuality "1"]
[TimeControl "40/5400+30:1800+30"]

1. d4 {[%emt 0:00:00]} Nf6 {[%emt 0:00:00]} 2. c4 {[%emt 0:00:00]} g6 {[%emt 0:00:00]} 3. Nc3 {[%emt 0:00:00]} d5 {[%emt 0:00:00]} 4. Nf3 {[%emt 0:00:00]} Bg7 {[%emt 0:00:03]} 5. h4 {[%emt 0:00:00]} c6 {[%emt 0:05:07]} 6. Bg5 {[%emt 0:00:00]} O-O {[%emt 0:01:15]} 7. e3 {[%emt 0:00:12]} Ne4 {[%emt 0:06:56]} 8. Qb3 {[%emt 0:02:10]} Nxg5 {[%emt 0:03:31]} 9. hxg5 {[%emt 0:00:14]} Be6 {[%emt 0:08:52]} 10. Qxb7 {[%emt 0:13:02]} dxc4 {[%emt 0:00:13]} 11. Qxa8 {[%emt 0:12:50]} Qb6 {[%emt 0:06:55]} 12. Na4 {[%emt 0:01:45]} Qb4+ {[%emt 0:01:47]} 13. Nd2 {[%emt 0:00:04]} Qxa4 {[%emt 0:00:06]} 14. Qb7 {[%emt 0:00:12]} Nd7 {[%emt 0:04:06]} 15. Bxc4 {[%emt 0:06:02]} Bxc4 {[%emt 0:01:52]} 16. Qxd7 {[%emt 0:02:13]} Ba6 {[%emt 0:00:31]} 17. Qxe7 {[%emt 0:19:01]} c5 {[%emt 0:12:33]} 18. Qxc5 {[%emt 0:14:48]} Rc8 {[%emt 0:00:08]} 19. b3 {[%emt 0:00:05]} Qd7 {[%emt 0:01:09]} 20. Qa5 {[%emt 0:00:05]} Bd3 21. Nc4 {[%emt 0:08:58]} Qg4 {[%emt 0:20:09]} 22. Qd2 {[%emt 0:00:06]} Qxg2 {[%emt 0:02:41]} 23. O-O-O {[%emt 0:01:29]} Bxc4 {[%emt 0:01:45]} 24. bxc4 {[%emt 0:00:01]} Rxc4+ {[%emt 0:01:27]} 25. Kb1 {[%emt 0:00:01]} Qxg5 {[%emt 0:00:48]} 26. Rc1 {[%emt 0:00:47]} Qb5+ {[%emt 0:00:49]} 27. Ka1 {[%emt 0:00:06]} h5 {[%emt 0:00:10]} 28. Rxc4 {[%emt 0:07:04]} Qxc4 {[%emt 0:00:02]} 29. f4 {[%emt 0:00:11]} Qd5 {[%emt 0:00:31]} 30. Rh2 {[%emt 0:00:08]} Qe4 {[%emt 0:00:18]} 31. Kb2 {[%emt 0:01:47]} Bf6 {[%emt 0:00:42]} 32. Kc1 {[%emt 0:02:17]} Be7 {[%emt 0:00:44]} 33. Kd1 {[%emt 0:02:06]} Qb1+ {[%emt 0:02:36]} 34. Qc1 {[%emt 0:00:06]} Qd3+ {[%emt 0:00:40]} 35. Ke1 {[%emt 0:00:04]} Bb4+ {[%emt 0:00:20]} 36. Kf2 {[%emt 0:00:04]} Bd2 {[%emt 0:00:20]} 37. Qc8+ {[%emt 0:00:03]} Kg7 {[%emt 0:00:10]} 38. Qh3 {[%emt 0:03:24]} Qb1 {[%emt 0:04:17]} 39. Kf3 {[%emt 0:03:00]} Qxa2 {[%emt 0:03:38]} 40. Qg2 {[%emt 0:00:00]} Qd5+ {[%emt 0:00:00]} 41. Ke2 {[%emt 0:02:23]} Qa5 {[%emt 0:00:12]} 42. Qe4 {[%emt 0:14:09]} Kf8 {[%emt 0:12:20]} 43. Kf3 {[%emt 0:03:20]} Bc3 {[%emt 0:05:00]} 44. f5 {[%emt 0:03:51]} Qa6 {[%emt 0:02:31]} 45. fxg6 {[%emt 0:02:41]} Qf6+ {[%emt 0:11:48]} 46. Qf4 {[%emt 0:00:08]} Qc6+ {[%emt 0:00:08]} 47. Kf2 {[%emt 0:00:28]} Qxg6 {[%emt 0:00:33]} 48. Qb8+ {[%emt 0:00:04]} 1-0

[Event "Polugaevsky Memorial 2018"]
[Site "Samara"]
[Date "2018.07.17"]
[Round "8"]
[White "Kotlyar, Kirill"]
[Black "Velichko, Arseny"]
[Result "0-1"]
[ECO "D43"]
[WhiteElo "2407"]
[BlackElo "2177"]
[Annotator "ChessBase"]
[PlyCount "35"]
[EventDate "2018.07.10"]
[EventType "swiss"]
[EventCountry "RUS"]
[SourceTitle "playchess.com"]
[Source "ChessBase"]
[SourceQuality "1"]
[TimeControl "40/5400+30:1800+30"]

1. d4 {[%emt 0:00:00]} d5 {[%emt 0:00:00]} 2. Nf3 {[%emt 0:00:00]} Nf6 {[%emt 0:00:00]} 3. c4 {[%emt 0:00:00]} e6 {[%emt 0:00:14]} 4. Nc3 {[%emt 0:00:02]} c6 {[%emt 0:00:11]} 5. cxd5 {[%emt 0:01:51]} exd5 {[%emt 0:00:05]} 6. Qc2 {[%emt 0:00:09]} Be7 {[%emt 0:00:55]} 7. Bg5 {[%emt 0:01:46]} g6 {[%emt 0:00:35]} 8. e4 {[%emt 0:05:00]} Nxe4 {[%emt 0:15:39]} 9. Nxe4 {[%emt 0:01:28]} Bf5 {[%emt 0:00:56]} 10. Qb3 {[%emt 0:33:44]} Bxe4 {[%emt 0:04:31]} 11. Qxb7 {[%emt 0:00:29]} Bxg5 {[%emt 0:04:22]} 12. Nxg5 {[%emt 0:03:39]} Qxg5 {[%emt 0:00:43]} 13. Qxa8 {[%emt 0:02:37]} O-O {[%emt 0:00:18]} 14. Qxa7 {[%emt 0:09:23]} Re8 {[%emt 0:02:37]} 15. Kd1 {[%emt 0:06:04]} c5 {[%emt 0:27:06]} 16. Qa3 {[%emt 0:09:37]} Bxg2 {[%emt 0:01:51]} 17. Rg1 {[%emt 0:02:09]} Qg4+ {[%emt 0:01:59]} 18. Kc2 {[%emt 0:06:37]} 0-1

[Event "Polugaevsky Memorial 2018"]
[Site "Samara"]
[Date "2018.07.17"]
[Round "8"]
[White "Fedorov, Alexey A"]
[Black "Lugovskoy, Maxim"]
[Result "0-1"]
[ECO "C15"]
[WhiteElo "1399"]
[BlackElo "2391"]
[Annotator "NA"]
[PlyCount "46"]
[EventDate "2018.07.10"]
[EventType "swiss"]
[EventCountry "RUS"]
[SourceTitle "playchess.com"]
[Source "ChessBase"]
[SourceQuality "1"]
[TimeControl "40/5400+30:1800+30"]

1. e4 {[%emt 0:00:00]} e6 {[%emt 0:00:00]} 2. d4 {[%emt 0:00:00]} d5 {[%emt 0:00:00]} 3. Nc3 {[%emt 0:00:00]} Bb4 {[%emt 0:00:00]} 4. Nge2 {[%emt 0:00:37]} dxe4 {[%emt 0:02:02]} 5. a3 {[%emt 0:00:25]} Be7 {[%emt 0:01:36]} 6. g4 {[%emt 0:00:44] C15: French: 3 Nc3 Bb4: Unusual White 4th moves} (6. Nxe4 Nf6 7. Nxf6+ Bxf6 8. Be3 O-O 9. Qd2 b6 10. O-O-O Bb7 11. h4 Nd7 12. Nf4 Be7 13. h5 Nf6 14. f3 Qc8 15. Qf2 Rd8 {0-1 (33) Jobava,B (2703)-Ivanchuk,V (2757) Leuven 2017}) 6... Bd7 {[%emt 0:02:15]} 7. Rg1 {[%emt 0:03:00]} Bc6 {[%emt 0:01:22]} 8. g5 {[%emt 0:03:54]} Bd6 $146 {[%emt 0:02:41]} ({Predecessor:} 8... Nd7 9. Bf4 Nb6 10. Be5 Bf8 11. Nf4 Nd7 12. Qh5 Nxe5 13. dxe5 g6 {0-1 (37) Tuncer,U (2289)-Vavrak,P (2466) Austria 2011}) 9. Bf4 {[%emt 0:05:31]} (9. Bg2 $11) 9... Ne7 {[%emt 0:03:06]} 10. Qd2 {[%emt 0:00:28]} Nd7 {[%emt 0:06:30]} 11. O-O-O {[%emt 0:09:05]} Nb6 {[%emt 0:00:12]} 12. Ng3 {[%emt 0:01:18]} Bxf4 {[%emt 0:04:27]} 13. Qxf4 {[%emt 0:00:05]} Ned5 {[%emt 0:00:57]} 14. Nxd5 {[%emt 0:25:18]} Qxd5 {[%emt 0:11:33]} 15. Kb1 {[%emt 0:06:43]} O-O-O {[%emt 0:09:46]} 16. Qxf7 {[%emt 0:04:52]} Rhf8 {[%emt 0:03:35]} 17. Qxg7 {[%emt 0:00:28]} Rxf2 {[%emt 0:01:08]} 18. Qxh7 $2 {[%emt 0:03:42]} (18. Rg2 $15 Rff8 19. h4 (19. Qxh7 Qxg5 20. Nxe4 Qf5 $15)) 18... Rxc2 {[%emt 0:08:39]} 19. Kxc2 {[%emt 0:01:07]} Qa2 {[%emt 0:00:03]} 20. Be2 {[%emt 0:13:16]} ({But not} 20. Nxe4 $2 Ba4+ 21. Kd2 Qxb2+ 22. Ke1 Bxd1 $19) 20... Ba4+ {[%emt 0:02:32]} 21. Kd2 $19 {[%emt 0:01:52]} Qxb2+ {[%emt 0:01:25]} 22. Ke3 {[%emt 0:04:06]} Rf8 {[%emt 0:04:59]} 23. Rgf1 {[%emt 0:03:24]} Qc3+ {[%emt 0:02:12]} 0-1

[Event "Polugaevsky Memorial 2018"]
[Site "Samara"]
[Date "2018.07.18"]
[Round "9"]
[White "Kopylov, Alexander A"]
[Black "Tugarin, Anton"]
[Result "1-0"]
[ECO "D12"]
[WhiteElo "2431"]
[BlackElo "2248"]
[Annotator "ChessBase"]
[PlyCount "39"]
[EventDate "2018.07.10"]
[EventType "swiss"]
[EventCountry "RUS"]
[SourceTitle "playchess.com"]
[Source "ChessBase"]
[SourceQuality "1"]
[TimeControl "40/5400+30:1800+30"]

1. d4 {[%emt 0:17:04]} d5 {[%emt 0:01:45]} 2. c4 {[%emt 0:00:06]} c6 {[%emt 0:00:14]} 3. Nf3 {[%emt 0:00:04]} Nf6 {[%emt 0:01:42]} 4. e3 {[%emt 0:00:40]} Bf5 {[%emt 0:00:14]} 5. Nc3 {[%emt 0:00:04]} a6 {[%emt 0:00:13]} 6. Bd3 {[%emt 0:08:12]} Bxd3 {[%emt 0:00:21]} 7. Qxd3 {[%emt 0:00:02]} e6 {[%emt 0:00:20]} 8. O-O {[%emt 0:00:10]} Bb4 {[%emt 0:00:55]} 9. Bd2 {[%emt 0:03:59]} O-O {[%emt 0:03:13]} 10. Rfc1 {[%emt 0:09:06]} Nbd7 {[%emt 0:07:49]} 11. Nxd5 {[%emt 0:01:37]} Nxd5 {[%emt 0:00:11]} 12. cxd5 {[%emt 0:00:02]} Bxd2 {[%emt 0:00:11]} 13. Nxd2 {[%emt 0:00:08]} cxd5 {[%emt 0:06:16]} 14. Rc2 {[%emt 0:07:06]} Rc8 {[%emt 0:04:29]} 15. Rac1 {[%emt 0:00:49]} Rxc2 {[%emt 0:03:07]} 16. Rxc2 {[%emt 0:11:41]} Qb8 {[%emt 0:02:55]} 17. Qc3 {[%emt 0:00:29]} Nb6 {[%emt 0:03:16]} 18. Qa5 {[%emt 0:00:10]} Qd6 {[%emt 0:03:12]} 19. Rc3 {[%emt 0:01:35]} Rc8 {[%emt 0:05:09]} 20. Qxb6 {[%emt 0:00:47]} 1-0

[Event "Polugaevsky Memorial 2018"]
[Site "Samara"]
[Date "2018.07.18"]
[Round "9"]
[White "Lugovskoy, Maxim"]
[Black "Karpenko, Artem"]
[Result "1-0"]
[ECO "D00"]
[WhiteElo "2391"]
[BlackElo "2383"]
[Annotator "NA"]
[PlyCount "113"]
[EventDate "2018.07.10"]
[EventType "swiss"]
[EventCountry "RUS"]
[SourceTitle "playchess.com"]
[Source "ChessBase"]
[SourceQuality "1"]
[TimeControl "40/5400+30:1800+30"]

1. d4 {[%emt 0:00:00]} d5 {[%emt 0:01:36]} 2. Nc3 {[%emt 0:00:00]} Nf6 {[%emt 0:00:26]} 3. Bf4 {[%emt 0:00:00]} a6 {[%emt 0:00:22]} 4. Nf3 {[%emt 0:00:14] D00: 1 d4 d5: Unusual lines} (4. e3 e6 5. Qf3 c5 6. O-O-O Nc6 7. Nge2 cxd4 8. Nxd4 Bb4 9. Nxc6 bxc6 10. Be5 Bd6 11. Bxd6 Qxd6 {½-½ (30) Jobava,B (2690)-Berkes,F (2662) Villorba 2018}) 4... e6 {[%emt 0:00:25]} 5. e3 {[%emt 0:00:05]} c5 {[%emt 0:00:36]} 6. Bd3 {[%emt 0:00:06]} b5 {[%emt 0:01:10]} 7. dxc5 {[%emt 0:04:28]} Bxc5 {[%emt 0:00:58]} 8. Qe2 $146 {[%emt 0:00:05]} ({Predecessor:} 8. e4 d4 9. Ne2 Bb7 10. Ng3 Qa5+ 11. Kf1 Nbd7 {1-0 (38) Gundavaa,B (2503)-Mohammad,N (2415) Pardubice 2016}) 8... b4 {[%emt 0:07:56]} 9. Nb1 {[%emt 0:00:19]} Bb7 {[%emt 0:00:53]} 10. Nbd2 {[%emt 0:00:13]} Qb6 {[%emt 0:05:16]} 11. O-O {[%emt 0:08:26]} Nbd7 {[%emt 0:01:58]} 12. Ne5 {[%emt 0:03:28]} O-O {[%emt 0:05:31]} 13. Ndf3 {[%emt 0:11:40]} Nxe5 {[%emt 0:03:06]} 14. Nxe5 {[%emt 0:00:21]} Bd6 {[%emt 0:03:09]} 15. Bg3 {[%emt 0:22:12]} Qc7 {[%emt 0:05:12]} 16. f4 {[%emt 0:04:27]} Rfc8 {[%emt 0:03:08]} 17. Nf3 {[%emt 0:03:26]} Qb6 {[%emt 0:04:42]} 18. Bh4 {[%emt 0:02:28]} Bxf4 {[%emt 0:16:07]} 19. Nd4 {[%emt 0:01:58]} Be5 {[%emt 0:00:06]} 20. Bxf6 {[%emt 0:01:00]} gxf6 {[%emt 0:16:28]} 21. Qg4+ {[%emt 0:06:22]} Kf8 {[%emt 0:00:23]} 22. Qh4 {[%emt 0:02:39]} Ke7 {[%emt 0:04:21]} 23. Rf2 {[%emt 0:00:21]} Rf8 {[%emt 0:03:50]} 24. a3 {[%emt 0:04:12]} Kd7 {[%emt 0:04:58]} 25. axb4 {[%emt 0:01:39]} Qxb4 {[%emt 0:01:25]} 26. c3 {[%emt 0:00:52]} Qb6 {[%emt 0:01:38]} 27. Kh1 {[%emt 0:05:46]} f5 {[%emt 0:01:08]} 28. Ra3 {[%emt 0:00:54]} Qd8 {[%emt 0:01:10]} 29. Qh5 {[%emt 0:00:21]} Bd6 {[%emt 0:01:44]} 30. Rb3 {[%emt 0:01:15]} Rb8 {[%emt 0:02:20]} 31. c4 {[%emt 0:01:55]} Qa5 {[%emt 0:01:40]} 32. Rc3 {[%emt 0:02:06]} dxc4 {[%emt 0:00:46]} 33. Bxc4 {[%emt 0:00:11]} Be4 {[%emt 0:01:01]} 34. Rc1 {[%emt 0:01:15]} Rbc8 {[%emt 0:00:32]} 35. b3 {[%emt 0:00:16]} Qe5 {[%emt 0:00:45]} 36. Rd1 {[%emt 0:00:01]} Ke7 {[%emt 0:00:31]} 37. Ne2 $2 {[%emt 0:01:10] [#]} (37. Qh4+ $11 Ke8 38. Qh5) 37... Rcd8 {[%emt 0:00:33]} (37... Qf6 $1 $19 38. Nd4 Bc5 39. Bxa6 Rcd8) 38. Ng3 {[%emt 0:02:19]} Bc7 {[%emt 0:00:27]} ({Black should play} 38... Bb7 $17 39. Nxf5+ exf5 40. Rxf5 Qg7 41. Qh4+ f6) 39. Rdf1 {[%emt 0:03:15]} Bb7 {[%emt 0:00:41]} 40. Be2 {[%emt 0:00:00]} Ke8 {[%emt 0:00:00]} 41. Qh4 {[%emt 0:08:22]} Rd7 {[%emt 0:08:15]} (41... Rg8 $17 42. Nh5 (42. Qa4+ Rd7 $17) 42... Kf8) 42. Nh5 {[%emt 0:07:36]} f6 {[%emt 0:04:33]} 43. Bc4 {[%emt 0:03:02]} Re7 {[%emt 0:01:10]} 44. Nf4 {[%emt 0:02:01]} Rg8 {[%emt 0:00:53]} 45. Bxe6 {[%emt 0:05:38]} Rg5 {[%emt 0:08:06]} 46. Bc4 {[%emt 0:02:16]} Qxe3 {[%emt 0:08:09]} (46... Bb6 $1 $15 47. Qh3 Bxe3) 47. Nd5 {[%emt 0:09:30]} Bxd5 {[%emt 0:00:10]} 48. Bxd5 {[%emt 0:00:01]} Bb6 {[%emt 0:02:51] [#]} 49. Rc2 {[%emt 0:00:28]} (49. Bc6+ $1 $18 Kd8 50. Rc2) 49... Qd4 {[%emt 0:00:38]} 50. Bc6+ {[%emt 0:00:42]} Kf8 {[%emt 0:00:36]} 51. Qh6+ {[%emt 0:00:21]} Rgg7 {[%emt 0:00:25]} 52. Bf3 {[%emt 0:00:35]} Kg8 {[%emt 0:00:37]} 53. Rc8+ {[%emt 0:01:06]} Bd8 {[%emt 0:00:25]} 54. Qc1 {[%emt 0:00:39]} Qb6 {[%emt 0:00:42]} 55. Qc6 $18 {[%emt 0:01:54]} (55. Bd5+ $142 Kf8 56. Qa3) 55... Qa5 {[%emt 0:00:29]} 56. Qd5+ {[%emt 0:00:13]} Qxd5 {[%emt 0:00:16]} 57. Bxd5+ {[%emt 0:00:01]} 1-0

[Event "Polugaevsky Memorial 2018"]
[Site "Samara"]
[Date "2018.07.18"]
[Round "9"]
[White "Skatchkov, Valery"]
[Black "Remizov, Yaroslav"]
[Result "0-1"]
[ECO "D45"]
[WhiteElo "2287"]
[BlackElo "2308"]
[Annotator "ChessBase"]
[PlyCount "96"]
[EventDate "2018.07.10"]
[EventType "swiss"]
[EventCountry "RUS"]
[SourceTitle "playchess.com"]
[Source "ChessBase"]
[SourceQuality "1"]
[TimeControl "40/5400+30:1800+30"]

1. d4 {[%emt 0:00:00]} Nf6 {[%emt 0:00:00]} 2. c4 {[%emt 0:00:00]} e6 {[%emt 0:00:00]} 3. Nf3 {[%emt 0:00:16]} d5 {[%emt 0:00:00]} 4. Nc3 {[%emt 0:00:31]} c6 {[%emt 0:01:15]} 5. e3 {[%emt 0:00:32]} Nbd7 {[%emt 0:02:54]} 6. Qc2 {[%emt 0:00:07]} Bd6 {[%emt 0:06:37]} 7. Bd3 {[%emt 0:00:05]} dxc4 {[%emt 0:00:59]} 8. Bxc4 {[%emt 0:00:22]} b5 {[%emt 0:00:28]} 9. Bd3 {[%emt 0:00:09]} Bb7 {[%emt 0:01:11]} 10. O-O {[%emt 0:00:29]} O-O {[%emt 0:01:56]} 11. a3 {[%emt 0:00:03]} a5 {[%emt 0:21:40]} 12. e4 {[%emt 0:15:26]} e5 {[%emt 0:03:00]} 13. Bg5 {[%emt 0:12:50]} exd4 {[%emt 0:11:12]} 14. Nxd4 {[%emt 0:02:04]} Bxh2+ {[%emt 0:00:50]} 15. Kxh2 {[%emt 0:00:09]} Ng4+ {[%emt 0:00:04]} 16. Kg3 {[%emt 0:01:14]} Qxg5 {[%emt 0:01:01]} 17. f4 {[%emt 0:01:35]} Qd8 {[%emt 0:00:16]} 18. e5 {[%emt 0:04:53]} g6 {[%emt 0:19:42]} 19. Kxg4 {[%emt 0:01:16]} Nxe5+ {[%emt 0:00:23]} 20. fxe5 {[%emt 0:00:14]} Qxd4+ {[%emt 0:00:03]} 21. Rf4 {[%emt 0:14:58]} Qxe5 {[%emt 0:01:59]} 22. Raf1 {[%emt 0:08:58]} h5+ {[%emt 0:04:14]} 23. Kf3 {[%emt 0:01:22]} Rfe8 {[%emt 0:08:16]} 24. g3 {[%emt 0:01:25]} g5 {[%emt 0:00:22]} 25. Re4 {[%emt 0:21:53]} c5 {[%emt 0:00:05]} 26. Kg2 {[%emt 0:01:55]} f5 {[%emt 0:02:06]} 27. Qb3+ {[%emt 0:00:40]} c4 {[%emt 0:00:36]} 28. Bxc4+ {[%emt 0:00:04]} Kh8 {[%emt 0:00:11]} 29. Qd1 {[%emt 0:01:44]} Bxe4+ {[%emt 0:00:34]} 30. Kh2 {[%emt 0:00:06]} bxc4 {[%emt 0:04:14]} 31. Qxh5+ {[%emt 0:00:06]} Kg8 {[%emt 0:00:05]} 32. Nxe4 {[%emt 0:00:19]} Qh8 {[%emt 0:00:07]} 33. Qxh8+ {[%emt 0:00:04]} Kxh8 {[%emt 0:00:04]} 34. Nxg5 {[%emt 0:00:04]} Re2+ {[%emt 0:00:08]} 35. Kh3 {[%emt 0:00:04]} Rxb2 {[%emt 0:00:29]} 36. Rxf5 {[%emt 0:00:09]} Rc8 {[%emt 0:02:22]} 37. Nf7+ {[%emt 0:00:14]} Kg8 {[%emt 0:00:47]} 38. Nd6 {[%emt 0:00:05]} Rc6 {[%emt 0:00:16]} 39. Nxc4 {[%emt 0:00:07]} Rxc4 {[%emt 0:00:03]} 40. Rxa5 {[%emt 0:00:00]} Rc3 {[%emt 0:00:00]} 41. Ra8+ {[%emt 0:00:16]} Kf7 {[%emt 0:00:14]} 42. Ra7+ {[%emt 0:00:05]} Kf6 {[%emt 0:00:15]} 43. Ra6+ {[%emt 0:00:03]} Ke5 {[%emt 0:00:04]} 44. Ra5+ {[%emt 0:00:02]} Ke4 {[%emt 0:00:06]} 45. Ra4+ {[%emt 0:00:04]} Ke3 {[%emt 0:00:31]} 46. Ra8 {[%emt 0:00:09]} Kf2 {[%emt 0:00:14]} 47. Rf8+ {[%emt 0:00:06]} Rf3 {[%emt 0:00:02]} 48. Rg8 {[%emt 0:00:07]} Rbb3 {[%emt 0:00:06]} 0-1